bitfinex/quotes_ETHUSD_20240822
["timestamp","ask_amount","ask_price","bid_price","bid_amount"]
[1724349198459,7.66302,2610.0,2609.5,7.76181039]
[1724349198621,3.83179,2609.8,2609.5,7.37689308]
[1724349198806,3.83179,2609.8,2609.5,0.01689308]
[1724349199174,7.66361,2609.8,2609.5,0.01689308]
[1724349199342,3.83186,2609.7,2609.5,0.01689308]
[1724349199547,3.97389533,2609.7,2609.5,0.01689308]
[1724349199928,3.832,2609.6,2609.5,0.01689308]
[1724349200315,4.61258253,2609.6,2609.5,0.01689308]
[1724349200513,7.80603533,2609.6,2609.5,0.01689308]
[1724349200964,3.97403533,2609.6,2609.5,0.01689308]
[1724349201124,0.14203533,2609.6,2609.5,0.01689308]
[1724349202547,3.8317,2609.9,2609.5,0.01689308]
[1724349202860,0.14203533,2609.6,2609.5,0.01689308]
[1724349203080,3.97376533,2609.8,2609.5,0.01689308]
[1724349203415,3.97376533,2609.8,2609.5,3.84895308]
[1724349203416,0.14203533,2609.8,2609.5,3.84895308]
[1724349203659,0.14203533,2609.7,2609.5,3.84895308]
[1724349203817,10.03231,2610.0,2609.5,3.84895308]
[1724349204153,0.14203533,2609.9,2609.5,3.84895308]
[1724349204710,3.97359533,2609.9,2609.5,3.84895308]
[1724349204915,0.14203533,2609.9,2609.5,3.84895308]
[1724349205117,0.14203533,2609.9,2609.5,4.84710539]
[1724349205358,0.14203533,2609.9,2609.5,8.67918539]
[1724349205517,0.14203533,2609.9,2609.5,8.67917539]
[1724349205717,0.14203533,2609.9,2609.5,4.84710539]
[1724349206619,0.14203533,2609.9,2609.7,3.83178]
[1724349206841,0.14203533,2609.9,2609.5,1.01506539]
[1724349206842,3.83113,2610.2,2609.8,4.214888]
[1724349207047,0.14203533,2609.8,2609.6,3.83193]
[1724349207363,0.14203533,2609.8,2609.5,3.84893308]
[1724349207364,3.83145,2610.0,2609.5,3.84893308]
[1724349207530,2.3908,2610.3,2609.6,0.61493331]
[1724349207531,0.14203533,2609.7,2609.6,0.61493331]
[1724349207713,10.03865,2609.9,2609.5,0.01689308]
[1724349207917,0.14203533,2609.7,2609.5,0.01689308]
[1724349208154,10.03865,2609.9,2609.5,0.01689308]
[1724349208343,0.14203533,2609.6,2609.5,0.01689308]
[1724349208539,6.20698,2609.9,2609.5,0.01689308]
[1724349208756,0.14203533,2609.6,2609.5,0.01689308]
[1724349208937,6.20698,2609.9,2609.5,0.40181139]
[1724349209129,0.14203533,2609.6,2609.5,0.40181139]
[1724349209358,3.83186,2609.7,2609.5,0.01689308]
[1724349209660,3.97403533,2609.6,2609.5,0.01689308]
[1724349211455,0.14203533,2609.6,2609.5,0.01689308]
[1724349211655,3.83182,2609.8,2609.5,0.01689308]
[1724349211656,3.83189,2609.7,2609.5,0.01689308]
[1724349211819,0.14184708,2609.6,2609.5,0.01689308]
[1724349214441,6.20704,2609.9,2609.5,0.01689308]
[1724349214442,10.0387,2609.9,2609.5,0.01689308]
[1724349214645,0.14177803,2609.6,2609.5,0.01689308]
[1724349214972,6.20696,2609.9,2609.5,3.84904308]
[1724349215137,0.14177803,2609.6,2609.5,3.84904308]
[1724349215340,6.20696,2609.9,2609.5,0.01689308]
[1724349215980,0.14177803,2609.8,2609.5,0.01689308]
[1724349217032,3.97349803,2609.8,2609.5,0.01689308]
[1724349217346,3.83193,2609.7,2609.5,0.01689308]
[1724349217542,3.832,2609.6,2609.5,0.01689308]
[1724349217758,10.13109686,2609.6,2609.5,0.01689308]
[1724349220317,13.96309686,2609.6,2609.5,0.01689308]
[1724349220497,8.48479686,2609.6,2608.5,1.5]
[1724349220676,8.48479686,2609.6,2607.4,2.56172517]
[1724349220677,6.18863,2608.3,2607.5,0.39968736]
[1724349220875,6.18863,2608.3,2607.4,3.83517]
[1724349220876,3.83417,2608.2,2607.2,3.83548]
[1724349221102,2.3547,2608.3,2607.7,3.961]
[1724349221296,0.14156459,2608.1,2607.9,3.83438]
[1724349221476,6.18818,2608.6,2607.7,3.961]
[1724349221477,2.3547,2608.6,2608.0,3.83435]
[1724349221802,6.31426,2608.9,2608.2,3.83394]
[1724349222502,6.31426,2608.9,2608.3,3.83389]
[1724349222672,2.4812,2608.9,2608.3,3.83389]
[1724349222874,2.4812,2608.9,2608.4,3.83376]
[1724349223099,2.4812,2608.9,2608.1,4.217575]
[1724349223301,6.31434,2608.9,2608.1,4.217575]
[1724349223502,6.31434,2608.9,2608.2,3.83405]
[1724349224003,2.4812,2608.9,2608.3,3.83389]
[1724349224205,2.4812,2608.9,2608.3,4.8661865]
[1724349224517,3.83277,2609.1,2608.3,4.8661865]
[1724349224518,6.29527,2609.1,2608.4,3.83375]
[1724349224701,3.83292,2609.0,2608.3,4.8661865]
[1724349224901,3.83303,2608.9,2608.3,4.8661865]
[1724349225302,6.29527,2609.1,2608.4,4.39704552]
[1724349225618,3.83289,2609.0,2608.4,0.48661865]
[1724349226714,3.83306,2608.9,2608.2,3.83403]
[1724349227081,3.83328,2608.8,2608.2,3.83403]
[1724349227282,3.83333,2608.7,2608.1,2.654935]
[1724349227595,3.83333,2608.7,2608.1,6.489125]
[1724349227939,3.83306,2608.9,2608.2,3.83404]
[1724349228162,6.29529,2609.1,2608.2,1.4284455]
[1724349228163,2.4625,2609.1,2608.2,1.4284455]
[1724349228377,3.83363,2608.5,2607.8,6.26154]
[1724349228530,6.21323,2608.5,2607.7,3.83478]
[1724349228728,3.834,2608.3,2607.7,3.83476]
[1724349228943,3.834,2608.3,2607.8,3.766964]
[1724349229154,3.83402,2608.3,2607.8,3.766964]
[1724349229512,3.83444,2608.0,2607.3,4.23445328]
[1724349229760,3.83444,2608.0,2607.3,3.83526]
[1724349230055,3.83444,2608.0,2607.2,2.3944]
[1724349230056,6.30901,2608.2,2607.5,3.83497]
[1724349230212,6.11794,2608.4,2607.7,3.8347]
[1724349230614,3.834,2608.3,2607.7,3.8347]
[1724349230854,6.11794,2608.4,2607.5,8.053427]
[1724349230855,3.83412,2608.2,2607.5,8.053427]
[1724349231228,3.83412,2608.2,2607.6,3.83493]
[1724349231438,7.66828,2608.2,2607.5,4.218457]
[1724349231860,7.66828,2608.2,2607.5,8.053457]
[1724349232055,7.66828,2608.2,2607.2,5.3944]
[1724349232056,2.2841,2607.9,2607.2,10.06527]
[1724349232242,2.2841,2607.9,2607.4,3.83522]
[1724349232243,6.11869,2607.9,2607.4,3.83522]
[1724349232555,3.83459,2607.9,2607.2,10.06526]
[1724349232727,3.83459,2607.9,2607.2,7.632456]
[1724349232728,3.83468,2607.8,2607.2,7.632456]
[1724349232938,3.83459,2607.9,2607.3,3.83538]
[1724349233119,3.83426,2608.1,2607.4,3.83514]
[1724349233830,3.83445,2608.0,2607.4,3.83514]
[1724349235162,3.83456,2607.9,2607.4,3.83514]
[1724349235367,6.25335,2607.8,2607.2,5.238046]
[1724349235578,3.83482,2607.7,2607.2,1.402626]
[1724349235967,0.14005097,2607.6,2607.2,1.402626]
[1724349236890,0.14005097,2607.6,2607.1,6.83558]
[1724349237063,0.14005097,2607.6,2607.1,3.83558]
[1724349237269,0.1390755,2607.6,2607.0,3.83569]
[1724349237469,0.1390755,2607.6,2607.1,3.83564]
[1724349239059,0.1390755,2607.6,2607.2,3.83552]
[1724349239283,0.1390755,2607.6,2607.3,3.8353]
[1724349239488,2.4187,2607.8,2607.3,3.8353]
[1724349239794,0.13939634,2607.5,2607.3,3.8353]
[1724349239978,2.4187,2607.8,2607.3,3.8353]
[1724349240298,6.25334,2607.8,2607.3,3.8353]
[1724349240502,6.25334,2607.8,2607.2,3.83545]
[1724349240503,0.13939634,2607.7,2607.2,3.83545]
[1724349240672,3.83507,2607.6,2607.0,7.67148]
[1724349241002,3.83516,2607.5,2607.0,7.67148]
[1724349241201,0.13939634,2607.5,2607.1,3.83566]
[1724349241706,0.13939634,2607.4,2607.2,3.83552]
[1724349241875,3.83494,2607.6,2607.1,3.83559]
[1724349242199,0.13935862,2607.3,2607.1,3.83559]
[1724349242508,0.13935862,2607.2,2607.1,3.83559]
[1724349242801,3.83494,2607.6,2607.1,4.602723]
[1724349242998,0.13935862,2607.2,2607.1,4.602723]
[1724349243246,10.08824,2607.8,2607.2,3.83552]
[1724349243533,3.83481,2607.7,2607.2,3.83552]
[1724349243736,3.83496,2607.6,2607.1,4.602803]
[1724349244041,3.83496,2607.6,2607.0,7.67147]
[1724349244333,3.83496,2607.6,2607.1,3.83566]
[1724349244694,0.13935862,2607.5,2607.1,3.83566]
[1724349245133,2.2589,2607.4,2607.0,3.83573]
[1724349245332,2.2589,2607.4,2607.1,3.83558]
[1724349245536,0.13935862,2607.3,2607.1,3.83558]
[1724349246234,0.13935862,2607.3,2607.2,3.83553]
[1724349246440,0.13935862,2607.3,2607.0,4.519303]
[1724349246596,0.13935862,2607.3,2606.8,6.83601]
[1724349246597,2.285,2607.3,2606.8,6.83601]
[1724349246792,0.13935862,2607.2,2606.8,3.83601]
[1724349247206,6.12039,2607.3,2606.8,3.83601]
[1724349247508,2.285,2607.3,2606.8,3.83601]
[1724349247703,0.13916376,2607.2,2607.0,3.83579]
[1724349248024,3.83504,2607.6,2607.0,3.83575]
[1724349248025,6.15204,2607.6,2607.0,3.83575]
[1724349248218,2.317,2607.6,2607.0,3.1253351]
[1724349248453,3.83448,2608.0,2607.4,3.83512]
[1724349248454,0.13916376,2607.5,2607.4,3.83512]
[1724349248932,0.13916376,2607.5,2607.4,3.83522]
[1724349249141,2.3636,2607.9,2607.5,3.83499]
[1724349249306,3.83423,2608.1,2607.6,3.83481]
[1724349250248,2.3127,2608.2,2607.8,3.8346]
[1724349250959,0.13455607,2608.1,2607.8,3.83456]
[1724349251126,0.13455607,2608.1,2607.8,7.66912]
[1724349251472,0.13455607,2608.1,2607.8,3.83456]
[1724349251831,0.13455607,2608.1,2607.6,7.66964]
[1724349252345,0.13455607,2608.1,2607.5,3.83502]
[1724349252346,3.83442,2608.0,2607.5,3.83502]
[1724349252550,6.26487,2607.9,2607.4,3.83523]
[1724349252751,6.39942607,2607.9,2607.4,3.83523]
[1724349253642,6.39942607,2607.9,2607.3,3.83532]
[1724349253814,2.4303,2607.6,2607.2,3.83549]
[1724349254004,2.4303,2607.6,2607.3,3.83537]
[1724349254211,0.1346128,2607.5,2607.4,7.67046]
[1724349254625,2.4303,2607.9,2607.5,3.83507]
[1724349255126,2.4303,2607.9,2607.6,3.83494]
[1724349255322,3.83415,2608.2,2607.6,3.83494]
[1724349255323,2.4303,2608.1,2607.7,3.8347]
[1724349257472,2.4303,2608.1,2607.7,3.83477]
[1724349257827,6.26464,2608.1,2607.4,0.627513]
[1724349258211,6.26464,2608.1,2607.6,3.8349]
[1724349259634,2.4303,2608.1,2607.6,0.8297413]
[1724349259860,2.4303,2608.1,2607.7,3.83472]
[1724349261083,6.26451,2608.1,2607.6,4.6646713]
[1724349261232,6.26451,2608.1,2607.6,3.83493]
[1724349261427,3.83457,2607.9,2607.4,3.83523]
[1724349261877,2.3392,2607.7,2607.3,3.0]
[1724349262098,2.3392,2607.7,2607.3,3.8353]
[1724349262280,2.3392,2607.7,2607.4,3.83522]
[1724349262798,2.3392,2607.7,2607.3,3.83538]
[1724349263002,2.3392,2607.7,2607.2,3.83538]
[1724349263301,2.3392,2607.7,2607.2,4.746468]
[1724349263672,2.3392,2607.9,2607.5,3.835]
[1724349264599,3.83466,2607.8,2607.2,7.79643]
[1724349264900,3.83466,2607.8,2607.3,3.83538]
[1724349266010,0.13489017,2607.7,2607.3,3.83538]
[1724349266360,2.3373,2607.6,2607.1,3.83565]
[1724349266674,2.3373,2607.6,2606.9,3.83593]
[1724349266675,3.83509,2607.5,2606.9,3.83593]
[1724349266876,3.83452,2607.9,2606.6,7.79731]
[1724349266877,2.3373,2607.4,2606.6,7.79731]
[1724349267074,2.3373,2607.4,2606.0,1.60223387]
[1724349267075,2.3373,2607.0,2606.4,3.83667]
[1724349267286,2.3373,2607.0,2606.6,3.83641]
[1724349267287,0.13478301,2606.9,2606.6,3.83641]
[1724349267487,0.13478301,2606.9,2606.6,7.67282]
[1724349267688,0.13478301,2606.9,2606.7,3.83625]
[1724349267889,0.13478301,2606.9,2606.8,3.83612]
[1724349268102,0.13478301,2606.9,2606.8,7.67224]
[1724349268305,2.4618,2607.3,2606.9,3.83593]
[1724349269165,6.2972,2607.3,2606.7,3.83613]
[1724349269521,2.4618,2607.0,2606.5,3.83648]
[1724349269696,2.4618,2607.0,2606.6,3.83631]
[1724349271421,2.4618,2607.0,2606.7,3.83626]
[1724349271601,3.8354,2607.3,2606.6,3.961]
[1724349271602,2.477,2607.3,2606.6,3.961]
[1724349271803,2.477,2607.3,2606.9,3.83587]
[1724349271986,2.477,2607.3,2606.9,7.67175]
[1724349272194,2.477,2607.3,2606.9,3.83587]
[1724349273123,6.31249,2607.3,2606.7,8.06846]
[1724349273306,6.31249,2607.3,2606.8,3.83607]
[1724349273617,2.477,2607.3,2606.8,5.039016]
[1724349273991,2.477,2607.3,2606.9,3.83596]
[1724349274193,2.477,2607.3,2606.9,3.83588]
[1724349275917,2.477,2607.3,2606.8,5.038956]
[1724349276120,2.477,2607.3,2606.8,3.83601]
[1724349276481,2.477,2607.3,2606.7,0.3961]
[1724349276482,3.83558,2607.2,2606.7,0.3961]
[1724349276784,3.83558,2607.2,2606.6,11.19632]
[1724349277207,3.83558,2607.2,2606.6,15.15732]
[1724349277922,3.83558,2607.2,2606.6,7.79732]
[1724349278680,3.83558,2607.2,2606.7,3.83625]
[1724349280603,2.2834,2607.1,2606.7,3.83625]
[1724349280796,2.41736336,2607.1,2606.6,7.79732]
[1724349281000,3.83584,2607.0,2606.6,3.961]
[1724349281208,6.11939,2606.9,2606.4,3.83663]
[1724349281591,0.13396336,2606.8,2606.4,3.83663]
[1724349281923,0.13396336,2606.8,2606.4,3.83662]
[1724349282129,0.13396336,2606.8,2606.4,4.916382]
[1724349282450,0.13396336,2606.8,2606.5,3.83648]
[1724349282580,0.13396336,2606.8,2606.7,3.83626]
[1724349283381,2.4805,2607.2,2606.6,3.961]
[1724349283628,0.13396336,2607.1,2606.8,3.83605]
[1724349285987,0.13396336,2607.1,2606.9,3.83596]
[1724349286504,0.13396336,2607.1,2606.8,4.99943]
[1724349286921,0.13396336,2607.1,2607.0,3.83582]
[1724349287343,2.4535,2607.4,2607.0,3.83582]
[1724349287344,6.28874,2607.4,2607.0,3.83582]
[1724349287522,0.13342722,2607.3,2607.0,3.83582]
[1724349287834,0.13342722,2607.3,2606.9,7.79697]
[1724349287994,0.13342722,2607.3,2606.9,3.961]
[1724349288336,2.3687,2607.1,2606.7,3.83622]
[1724349288831,0.13342722,2607.0,2606.7,3.83622]
[1724349289343,0.13342722,2607.0,2606.6,7.79728]
[1724349289344,0.13342722,2607.0,2606.6,3.961]
[1724349289508,6.20481,2606.9,2606.4,3.83659]
[1724349289694,0.13343984,2606.8,2606.4,3.83659]
[1724349289898,3.83614,2606.8,2606.4,3.83659]
[1724349290096,0.13336414,2606.7,2606.4,3.83659]
[1724349290295,3.83614,2606.8,2606.4,3.83659]
[1724349290554,0.13336414,2606.7,2606.4,3.83659]
[1724349290713,3.83614,2606.8,2606.4,3.83659]
[1724349290909,0.13333259,2606.7,2606.4,3.83659]
[1724349291133,3.83614,2606.8,2606.4,3.83659]
[1724349291304,0.13333259,2606.7,2606.4,3.83659]
[1724349291514,3.83614,2606.8,2606.4,3.83659]
[1724349291845,0.13333259,2606.7,2606.4,3.83659]
[1724349292141,3.83614,2606.8,2606.4,3.83659]
[1724349292314,0.13333259,2606.7,2606.4,3.83659]
[1724349292512,3.83614,2606.8,2606.4,3.83659]
[1724349292709,0.13333259,2606.7,2606.4,3.83659]
[1724349292901,2.3687,2606.9,2606.4,3.83659]
[1724349293103,0.13333259,2606.8,2606.4,3.83659]
[1724349293519,0.13333259,2606.8,2606.4,7.67322]
[1724349293744,0.13333259,2606.8,2606.5,3.83653]
[1724349294255,0.13333259,2606.8,2606.6,7.79726]
[1724349295018,0.13333259,2606.8,2606.6,11.63359]
[1724349295723,0.13333259,2606.8,2606.7,3.83626]
[1724349296247,2.50203259,2606.8,2606.5,3.83655]
[1724349296405,2.50203259,2606.8,2606.4,3.83657]
[1724349296601,2.3687,2606.8,2606.4,3.83657]
[1724349296841,2.282,2606.6,2606.2,3.83686]
[1724349297203,0.13330737,2606.5,2606.2,3.83686]
[1724349297651,0.13330737,2606.5,2606.3,3.83677]
[1724349297850,0.13330737,2606.5,2606.2,3.83686]
[1724349298358,0.13322535,2606.4,2606.2,3.83686]
[1724349298663,2.282,2606.6,2606.2,3.83686]
[1724349298963,2.4497,2606.3,2606.1,3.83713]
[1724349299536,0.13322535,2606.2,2606.1,3.83713]
[1724349299744,2.4497,2606.3,2606.1,3.83713]
[1724349299986,2.4497,2606.3,2606.1,3.83715]
[1724349299987,0.13321273,2606.2,2606.1,3.83715]
[1724349300292,2.4497,2606.3,2606.2,3.837]
[1724349300490,2.3818,2606.6,2606.1,1.463536]
[1724349300637,2.3818,2606.6,2606.3,3.83675]
[1724349301862,2.3818,2606.6,2606.4,3.83667]
[1724349302039,2.3818,2606.6,2606.1,3.83703]
[1724349302243,2.3818,2606.6,2606.1,4.916871]
[1724349302467,2.3818,2606.6,2606.3,3.83685]
[1724349302778,3.83542,2607.3,2606.8,3.83608]
[1724349302779,2.3818,2607.3,2606.8,3.83608]
[1724349303077,0.621718,2607.2,2606.8,3.83608]
[1724349303861,0.621718,2607.2,2606.6,11.63368]
[1724349304058,0.621718,2607.2,2606.7,3.83622]
[1724349304257,4.457298,2607.2,2606.7,3.83622]
[1724349304501,6.2777,2607.1,2606.6,7.79727]
[1724349304812,7.3451498,2607.1,2606.6,11.6336]
[1724349304952,6.27772,2607.1,2606.6,7.79727]
[1724349305151,2.442,2607.1,2606.7,3.83624]
[1724349305396,2.442,2607.1,2606.6,7.79727]
[1724349305555,2.442,2607.1,2606.4,3.83662]
[1724349305556,2.2592,2606.9,2606.4,7.67324]
[1724349305761,2.2592,2606.9,2606.4,3.83662]
[1724349305989,6.09519,2606.9,2606.4,3.83662]
[1724349306305,3.83643,2606.6,2606.1,3.83714]
[1724349306594,2.3203,2606.5,2606.1,3.83714]
[1724349306799,2.3203,2606.5,2606.0,7.79819]
[1724349306800,2.3203,2606.5,2606.2,3.83697]
[1724349307298,3.83687,2606.3,2605.8,7.67499]
[1724349307608,2.3203,2606.2,2606.0,3.83727]
[1724349307750,2.3203,2606.4,2606.1,3.83709]
[1724349308377,2.3203,2606.4,2606.0,7.67448]
[1724349308699,2.3203,2606.4,2606.0,3.83721]
[1724349309282,2.3203,2606.4,2605.9,3.961]
[1724349309593,2.3203,2606.4,2605.9,7.79844]
[1724349310396,2.3203,2606.4,2606.0,7.67445]
[1724349310599,2.3203,2606.4,2606.0,3.8372]
[1724349310919,0.12856141,2606.3,2606.0,3.8372]
[1724349311620,0.12856141,2606.3,2605.9,3.961]
[1724349311920,0.12856141,2606.3,2606.0,0.60037264]
[1724349312144,0.12856141,2606.3,2605.9,3.961]
[1724349312913,0.12856141,2606.3,2606.0,0.60036226]
[1724349313096,0.12856141,2606.3,2606.0,3.83729]
[1724349313315,0.12856141,2606.3,2605.9,7.79839]
[1724349314707,3.96542141,2606.3,2605.9,3.961]
[1724349314917,3.96542141,2606.3,2605.8,3.83747]
[1724349314918,2.4597,2606.2,2605.8,3.83747]
[1724349315323,0.12840954,2606.1,2605.8,3.83747]
[1724349316609,0.12840954,2606.1,2605.6,7.7988]
[1724349316811,2.2648,2606.0,2605.6,7.7988]
[1724349317138,2.2648,2606.0,2605.4,3.83812]
[1724349317139,6.10225,2605.9,2605.4,3.83812]
[1724349317837,0.12816908,2605.8,2605.4,3.83811]
[1724349318681,0.12816908,2605.8,2605.4,3.8381]
[1724349318897,2.3827,2605.7,2605.5,3.83788]
[1724349319056,0.12816908,2605.8,2605.6,3.83788]
[1724349319252,2.3827,2605.9,2605.7,3.83764]
[1724349319857,2.3827,2605.9,2605.6,3.83781]
[1724349320061,2.3827,2605.9,2605.6,3.8378]
[1724349320301,2.3827,2605.9,2605.7,3.83771]
[1724349322182,2.3827,2605.9,2605.6,3.83787]
[1724349323504,2.3827,2605.9,2605.4,5.31442313]
[1724349323505,2.3827,2605.9,2605.5,3.83796]
[1724349323707,2.3827,2605.9,2605.5,3.83801]
[1724349324591,2.3827,2605.9,2605.6,3.83786]
[1724349324993,2.3827,2605.9,2605.5,3.83799]
[1724349325201,2.3827,2605.9,2605.6,3.83787]
[1724349325769,0.12816908,2605.8,2605.5,3.83801]
[1724349325970,0.12816908,2605.8,2605.7,3.83774]
[1724349326193,2.4697,2606.3,2605.6,3.961]
[1724349326506,2.4697,2606.3,2605.9,3.83733]
[1724349326679,2.4697,2606.3,2605.7,3.83762]
[1724349326680,6.30665,2606.3,2605.8,3.83758]
[1724349326879,6.09806,2606.2,2605.8,3.83758]
[1724349327411,2.261,2605.9,2605.5,3.83801]
[1724349327585,2.261,2605.8,2605.5,3.83801]
[1724349329314,2.261,2605.8,2605.6,3.83788]
[1724349329824,2.261,2605.8,2605.5,3.83801]
[1724349331788,2.261,2605.8,2605.4,3.83817]
[1724349332242,2.261,2605.8,2605.2,3.1261513]
[1724349332243,2.444,2605.4,2605.2,0.1261513]
[1724349333292,6.28218,2605.4,2605.2,0.1261513]
[1724349333526,6.20582,2605.3,2605.2,0.1261513]
[1724349333724,2.3675,2605.3,2605.2,0.1261513]
[1724349333948,2.4951,2605.7,2605.3,3.83828]
[1724349334095,2.4951,2605.7,2605.3,3.83824]
[1724349334296,2.4951,2605.7,2605.3,8.46968773]
[1724349334711,2.4951,2606.1,2605.5,3.83794]
[1724349334907,3.83732,2606.0,2605.5,3.83794]
[1724349335229,2.4951,2606.1,2605.5,3.83788]
[1724349335428,3.83731,2606.0,2605.5,3.83788]
[1724349335616,3.83731,2606.0,2605.5,7.67582]
[1724349335819,3.83731,2606.0,2605.5,7.67583]
[1724349335990,3.83731,2606.0,2605.5,3.83788]
[1724349338000,7.67469,2606.0,2605.5,3.83788]
[1724349338231,3.83746,2605.9,2605.3,12.30790773]
[1724349338409,3.83731,2606.0,2605.4,3.83815]
[1724349338626,3.83731,2606.0,2605.4,5.0815559]
[1724349339304,7.67472,2606.0,2605.4,5.0815559]
[1724349339524,3.83731,2606.0,2605.4,5.0815559]
[1724349340128,3.83753,2605.9,2605.4,5.0815659]
[1724349340805,0.12761206,2605.8,2605.4,5.0815659]
[1724349341144,0.12761206,2605.8,2605.4,1.2434059]
[1724349341598,2.4526,2605.7,2605.4,1.2434059]
[1724349341804,6.29038,2605.7,2605.3,4.63145773]
[1724349342152,3.83805,2605.5,2605.2,0.1261513]
[1724349342654,3.83832,2605.3,2605.2,0.1261513]
[1724349342958,2.356,2605.4,2605.2,0.1261513]
[1724349342959,6.19418,2605.4,2605.2,0.1261513]
[1724349343138,0.12761206,2605.3,2605.2,0.1261513]
[1724349343340,3.96593206,2605.3,2605.2,0.1261513]
[1724349343953,0.12761206,2605.3,2605.2,0.1261513]
[1724349344456,2.356,2605.4,2605.2,0.1261513]
[1724349344658,0.12761206,2605.3,2605.2,0.1261513]
[1724349347085,3.83789,2605.6,2605.2,0.1261513]
[1724349347267,0.12761206,2605.3,2605.2,3.9646113]
[1724349347474,2.356,2605.7,2605.2,3.9646113]
[1724349347670,0.12761206,2605.3,2605.2,3.9646113]
[1724349347833,6.19378,2605.7,2605.2,5.65048302]
[1724349348024,0.12761206,2605.3,2605.2,3.9646113]
[1724349348229,2.356,2605.7,2605.2,3.9646113]
[1724349348537,2.356,2605.9,2605.6,3.83787]
[1724349348699,3.83718,2606.1,2605.6,7.7988]
[1724349349571,6.19301,2606.2,2605.7,3.83771]
[1724349350096,2.356,2606.2,2605.7,3.83761]
[1724349350392,6.19308,2606.2,2605.7,3.83761]
[1724349350691,6.19308,2606.2,2605.7,4.65717288]
[1724349350902,4.43813636,2606.6,2606.1,3.83714]
[1724349351066,2.323,2606.7,2606.2,3.961]
[1724349351251,3.83643,2606.6,2606.2,3.961]
[1724349351454,6.15926,2606.7,2606.2,3.961]
[1724349351898,6.15926,2606.7,2606.2,7.79789]
[1724349352053,6.31125,2606.9,2606.3,3.83673]
[1724349353003,6.09926,2607.1,2606.5,7.79752]
[1724349353202,9.93505,2607.1,2606.5,7.79752]
[1724349353377,6.09926,2607.1,2606.5,7.79752]
[1724349354564,3.83583,2607.0,2606.5,7.79752]
[1724349354765,3.83598,2606.9,2606.5,3.961]
[1724349354962,4.829504,2606.9,2606.5,3.961]
[1724349355506,6.09926,2607.1,2606.4,3.83662]
[1724349355872,3.95905741,2607.0,2606.4,3.83662]
[1724349356098,0.12320741,2607.0,2606.5,3.83655]
[1724349356284,0.12320741,2607.0,2606.5,10.16255]
[1724349356492,0.12320741,2607.0,2606.6,1.02392724]
[1724349356685,0.12320741,2607.0,2606.6,4.93695966]
[1724349356886,0.12320741,2607.0,2606.7,3.83625]
[1724349357182,6.14796,2607.3,2606.6,1.02392724]
[1724349357183,7.6715,2607.1,2606.6,1.02392724]
[1724349357383,0.12320741,2606.9,2606.5,7.79742]
[1724349357577,0.12386732,2607.0,2606.5,7.79742]
[1724349357804,3.83568,2607.1,2606.5,7.79742]
[1724349357979,0.12386732,2606.9,2606.5,7.79742]
[1724349358181,3.83568,2607.1,2606.5,13.040208]
[1724349358379,0.12386732,2606.8,2606.6,3.83637]
[1724349358584,6.14795,2607.3,2606.6,3.83637]
[1724349358788,0.12386732,2606.7,2606.6,1.3040118]
[1724349359126,3.83568,2607.1,2606.5,7.79742]
[1724349359426,3.83568,2607.1,2606.6,3.83641]
[1724349359572,0.12386732,2607.0,2606.6,3.83641]
[1724349360224,3.8357,2607.1,2606.5,7.79742]
[1724349360435,0.12389269,2606.9,2606.5,7.79742]
[1724349360635,0.12389269,2606.9,2606.6,3.83632]
[1724349360838,9.98347,2607.3,2606.5,7.79742]
[1724349360996,0.12389904,2606.8,2606.6,3.83627]
[1724349361198,6.14795,2607.3,2606.7,4.999629]
[1724349361400,0.12389904,2607.2,2606.7,4.999559]
[1724349361573,0.12389904,2607.2,2606.8,10.29064664]
[1724349361779,0.12389904,2607.2,2606.8,11.8196672]
[1724349361997,3.83545,2607.3,2606.8,11.8196672]
[1724349362197,0.12051861,2607.1,2606.8,11.8196672]
[1724349362481,0.12051861,2607.0,2606.8,11.8196672]
[1724349362831,3.83545,2607.3,2606.8,11.8196672]
[1724349363039,0.12051861,2606.9,2606.8,10.29064664]
[1724349363453,3.83545,2607.3,2606.8,10.29064664]
[1724349363738,0.12051861,2606.9,2606.8,10.29064664]
[1724349363888,3.83523,2607.4,2606.9,3.83595]
[1724349364211,2.2973,2607.6,2607.1,3.961]
[1724349364528,3.83495,2607.6,2607.2,3.83551]
[1724349364726,3.8351,2607.5,2607.1,3.961]
[1724349365423,7.66978,2607.7,2607.1,7.79667]
[1724349365643,3.83484,2607.7,2607.2,3.83549]
[1724349367794,3.83496,2607.6,2607.2,3.83549]
[1724349367998,3.8351,2607.5,2607.1,3.961]
[1724349368697,6.2494,2607.5,2607.1,3.961]
[1724349368999,2.4143,2607.5,2607.1,7.79667]
[1724349370383,3.83538,2607.3,2607.1,3.961]
[1724349370599,2.4496,2607.0,2606.8,7.36]
[1724349370801,2.4496,2607.0,2606.6,3.8363]
[1724349371126,6.28543,2607.0,2606.4,7.36]
[1724349371331,6.53049,2607.0,2606.4,7.36]
[1724349371481,6.53049,2607.0,2606.4,11.19662]
[1724349371482,0.12085553,2606.9,2606.4,11.19662]
[1724349371826,0.12085553,2606.9,2606.5,3.83655]
[1724349373226,0.12085553,2606.9,2606.4,11.19662]
[1724349373899,3.95683553,2606.9,2606.4,11.19662]
[1724349374224,3.83615,2606.8,2606.4,7.36]
[1724349374595,3.83627,2606.7,2606.2,3.961]
[1724349374810,6.25284,2606.6,2606.1,11.19705]
[1724349374995,6.25284,2606.6,2606.2,3.0]
[1724349375195,6.25284,2606.6,2606.1,7.36]
[1724349375196,3.83657,2606.5,2606.1,7.36]
[1724349375404,6.25284,2606.6,2606.1,7.36]
[1724349375632,0.12085553,2606.5,2606.2,3.83698]
[1724349376209,0.12085553,2606.5,2606.3,3.83676]
[1724349376420,2.4164,2606.6,2606.3,3.83676]